bitfinex/quotes_ETHUSD_20260227
["timestamp","ask_amount","ask_price","bid_price","bid_amount"]
[1772193918764,0.60442459,1963.2,1962.5,5.09553187]
[1772193919403,0.60442459,1963.2,1962.5,1.27388535]
[1772193919769,1.27336627,1963.3,1962.6,0.60172275]
[1772193920093,0.60442459,1963.4,1962.6,0.60172275]
[1772193920591,0.001,1963.3,1962.6,0.60172275]
[1772193920781,0.001,1963.3,1962.8,0.60172275]
[1772193920987,0.001,1963.3,1962.9,0.60172275]
[1772193922903,0.001,1963.3,1962.8,2.55568796]
[1772193922904,0.60542459,1963.3,1962.8,2.55568796]
[1772193923193,0.001,1963.3,1962.8,3.15741071]
[1772193923367,1.87746665,1963.8,1962.9,0.60172275]
[1772193923692,1.87746665,1963.8,1962.8,2.55568796]
[1772193923693,0.60442459,1963.7,1963.0,0.60172275]
[1772193924067,1.87845323,1963.9,1963.0,1.77060929]
[1772193924392,0.001,1963.9,1963.1,0.60172275]
[1772193924586,0.001,1963.9,1963.3,0.60172275]
[1772193924889,0.001,1963.9,1963.4,1.27330141]
[1772193925318,0.001,1963.9,1963.5,0.60172275]
[1772193927421,0.001,1963.9,1963.6,1.27317172]
[1772193927605,0.001,1964.1,1963.8,0.60172275]
[1772193927999,0.001,1964.1,1963.7,1.77060929]
[1772193928000,0.001,1964.4,1964.0,0.60172275]
[1772193928313,0.001,1964.4,1964.1,1.88572275]
[1772193928810,1.87776043,1964.9,1964.2,0.60172275]
[1772193929011,0.60542459,1964.9,1964.2,0.60172275]
[1772193929615,0.60542459,1964.9,1964.3,1.27271801]
[1772193929992,1.87775465,1964.9,1964.3,1.27271801]
[1772193930190,0.60542459,1964.9,1964.3,1.27271801]
[1772193930388,0.001,1964.9,1964.3,1.87444076]
[1772193930588,0.001,1964.9,1964.4,0.60172275]
[1772193931530,0.001,1964.9,1964.5,1.27258844]
[1772193931693,0.001,1964.9,1964.6,1.284]
[1772193932118,0.001,1964.9,1964.2,5.69259481]
[1772193932119,0.60442459,1964.8,1964.3,1.2726842]
[1772193932509,0.001,1964.8,1964.4,0.60172275]
[1772193932727,0.60542459,1964.8,1964.2,1.284]
[1772193932944,0.60542459,1964.8,1964.1,0.60172275]
[1772193932945,0.60542459,1964.8,1964.1,1.87455801]
[1772193933127,0.60542459,1964.8,1964.1,0.60172275]
[1772193933323,0.60542459,1964.8,1963.9,3.15966925]
[1772193933646,0.60442459,1964.6,1963.9,1.285]
[1772193933811,0.60442459,1964.6,1963.9,3.15968886]
[1772193934011,0.60442459,1964.6,1963.9,1.285]
[1772193934445,0.60442459,1964.6,1963.9,2.55796084]
[1772193934816,0.60442459,1964.6,1963.9,1.285]
[1772193935052,0.60442459,1964.6,1963.9,3.15969587]
[1772193935845,1.87696606,1964.6,1963.9,3.15969587]
[1772193937249,0.60442459,1964.5,1963.8,1.27300193]
[1772193937953,5.69433097,1964.7,1963.9,0.60172275]
[1772193939938,0.58070604,1964.6,1963.8,1.27298469]
[1772193940148,0.58070604,1964.6,1963.8,1.86794717]
[1772193940652,0.58070604,1964.6,1963.8,0.59496248]
[1772193941362,1.27345889,1964.8,1963.8,0.59496248]
[1772193941363,0.58170604,1964.8,1963.9,0.59496248]
[1772193941533,1.85415871,1964.8,1963.9,0.59496248]
[1772193941940,1.85415871,1964.8,1964.0,1.27291242]
[1772193942267,1.85415871,1964.8,1964.1,0.59496248]
[1772193942648,0.58070604,1964.7,1963.8,5.09216286]
[1772193942848,0.58070604,1964.7,1963.8,1.27304206]
[1772193943469,0.58070604,1964.5,1963.7,3.15306799]
[1772193944279,1.85335926,1964.4,1963.7,3.15306799]
[1772193944648,1.85321695,1964.7,1963.9,0.0011]
[1772193944968,0.001,1964.7,1963.9,0.0011]
[1772193945781,0.001,1964.7,1964.0,16.339824]
[1772193946375,0.001,1964.7,1964.1,1.27284761]
[1772193946670,0.001,1964.7,1964.2,1.284]
[1772193947246,0.001,1964.7,1964.3,0.59496248]
[1772193948104,0.001,1964.9,1964.3,0.59496248]
[1772193948700,0.001,1964.9,1964.4,1.8676157]
[1772193948885,0.58170604,1964.9,1964.4,1.27265322]
[1772193949267,0.001,1964.9,1964.4,1.8676157]
[1772193951500,0.58170604,1964.9,1964.3,5.09063225]
[1772193951718,0.58170604,1964.9,1963.9,1.27407461]
[1772193951869,0.001,1964.9,1964.1,0.59496248]
[1772193952883,0.001,1964.9,1964.3,0.59496248]
[1772193953686,0.001,1964.9,1964.4,1.88196248]
[1772193954065,0.001,1964.9,1964.5,0.59496248]
[1772193955292,0.001,1964.9,1964.6,0.59496248]
[1772193956973,0.001,1964.8,1964.6,0.59496248]
[1772193957377,0.001,1964.8,1964.7,1.86742137]
[1772193957779,0.001,1965.1,1964.8,0.59496248]
[1772193958395,0.001,1965.1,1964.8,1.88396248]
[1772193958600,0.001,1965.1,1964.9,0.59496248]
[1772193960208,0.001,1965.1,1964.9,1.86728889]
[1772193960394,0.001,1965.1,1964.9,1.86728415]
[1772193960598,0.001,1965.1,1964.9,1.86728115]
[1772193960799,0.001,1965.1,1964.5,1.86751528]
[1772193961094,0.001,1965.1,1964.6,0.59496248]
[1772193961992,1.85253922,1965.7,1964.8,0.59496248]
[1772193962178,1.85253922,1965.7,1965.0,0.59496248]
[1772193962380,0.58070604,1966.1,1965.0,0.59496248]
[1772193963812,0.58070604,1966.2,1965.0,0.59496248]
[1772193964228,1.27155282,1966.1,1965.2,0.59496248]
[1772193966219,1.85223095,1966.2,1965.4,0.59496248]
[1772193966434,1.85223095,1966.2,1965.5,0.59496248]
[1772193966745,1.852096,1966.4,1965.5,0.59496248]
[1772193967040,1.27138996,1966.4,1965.7,0.59496248]
[1772193967216,0.58070604,1966.3,1965.7,0.59496248]
[1772193967420,0.58070604,1966.3,1965.4,0.59496248]
[1772193968203,1.27148814,1966.2,1965.6,0.59496248]
[1772193968527,1.85219418,1966.2,1965.6,0.59496248]
[1772193968914,1.27135882,1966.4,1965.6,0.59496248]
[1772193969337,0.001,1966.1,1965.6,0.59496248]
[1772193969500,0.001,1966.1,1965.7,1.288]
[1772193969704,0.001,1966.1,1965.8,0.59496248]
[1772193970235,1.27123122,1966.6,1965.9,0.56289565]
[1772193970822,1.27123122,1966.6,1966.0,1.83451314]
[1772193971543,1.27123122,1966.6,1965.8,0.56289565]
[1772193971544,0.5935208,1966.5,1965.8,0.56289565]
[1772193971835,0.5935208,1966.5,1965.8,1.83463392]
[1772193972011,0.5935208,1966.5,1965.8,0.56289565]
[1772193972212,0.5935208,1966.3,1965.1,0.56399565]
[1772193972408,2.47134644,1966.1,1965.1,0.0011]
[1772193972722,0.5935208,1965.6,1965.0,0.0011]
[1772193973343,0.5935208,1965.5,1965.0,0.0011]
[1772193974241,0.5935208,1965.5,1964.8,0.0011]
[1772193974449,0.5935208,1965.3,1964.8,0.0011]
[1772193974827,1.86565595,1965.2,1964.8,0.0011]
[1772193975014,1.27213515,1965.2,1964.8,0.0011]
[1772193975242,1.86565595,1965.2,1964.8,0.0011]
[1772193975445,1.27213515,1965.2,1964.8,0.0011]
[1772193976044,0.5935208,1965.5,1964.8,0.0011]
[1772193977647,1.27200569,1965.4,1964.8,0.56399565]
[1772193977842,5.08761972,1965.6,1964.8,0.56399565]
[1772193979430,1.27168218,1966.0,1964.8,0.56399565]
[1772193979732,0.5935208,1965.8,1965.0,0.56289565]
[1772193979925,2.34027512,1965.9,1965.0,0.56289565]
[1772193980139,0.5935208,1965.8,1965.0,0.56289565]
[1772193980949,0.5935208,1965.8,1964.8,0.0011]
[1772193981251,0.5935208,1965.5,1964.5,0.56289565]
[1772193981549,1.86565595,1965.2,1964.5,0.56289565]
[1772193981747,1.27213515,1965.2,1964.5,0.56289565]
[1772193981927,0.5935208,1965.1,1964.4,0.0011]
[1772193982245,0.5935208,1965.1,1964.9,0.0011]
[1772193983121,0.5935208,1965.1,1964.8,0.0011]
[1772193983623,1.27226463,1965.0,1964.8,0.0011]
[1772193984333,1.86576802,1965.1,1964.8,0.0011]
[1772193984540,1.27224722,1965.1,1964.8,0.0011]
[1772193984744,1.27218569,1965.2,1964.8,0.0011]
[1772193985118,5.0881447,1965.4,1964.8,0.56399565]
[1772193985320,0.001,1965.5,1964.8,0.56399565]
[1772193985524,1.2729447,1965.5,1964.8,0.56399565]
[1772193985842,0.001,1965.5,1964.8,1.83637995]
[1772193986555,0.001,1965.5,1964.9,0.56289565]
[1772193986942,0.001,1965.5,1964.8,0.0011]
[1772193986943,0.5935208,1965.4,1964.8,0.0011]
[1772193987454,0.001,1965.5,1964.8,1.83637599]
[1772193987645,1.27200569,1965.4,1964.8,0.0011]
[1772193987950,0.5935208,1965.3,1964.8,0.0011]
[1772193988143,0.5935208,1965.2,1964.6,0.0011]
[1772193989743,1.27219988,1965.1,1964.6,0.0011]
[1772193994857,1.27219988,1965.1,1964.7,0.0011]
[1772193996179,1.27217119,1965.2,1964.7,0.56399565]
[1772193996966,1.27217119,1965.2,1964.7,1.8364491]
[1772193997280,1.27217119,1965.2,1964.7,0.56399565]
[1772193997671,1.27217119,1965.2,1964.8,0.56289565]
[1772193998656,0.001,1965.5,1964.8,0.56289565]
[1772193998865,0.001,1965.5,1965.1,0.54302982]
[1772194001693,0.001,1965.5,1965.1,1.81522428]
[1772194001874,0.001,1965.5,1965.1,0.54302982]
[1772194002075,0.001,1965.5,1965.1,1.81522888]
[1772194002277,0.001,1965.5,1965.2,0.57678963]
[1772194002679,1.27171849,1965.9,1965.3,0.57678963]
[1772194003278,0.55845753,1966.3,1965.3,0.57678963]
[1772194003600,0.55845753,1966.3,1965.5,1.27194098]
[1772194003601,1.27148814,1966.2,1965.5,1.27194098]
[1772194003910,0.55845753,1966.1,1965.1,0.57678963]
[1772194004201,1.99845753,1966.0,1965.1,0.57678963]
[1772194004797,0.55845753,1965.9,1965.1,0.57678963]
[1772194004981,1.44,1966.0,1965.1,0.57678963]
[1772194005494,1.99845753,1966.0,1965.1,0.57678963]
[1772194005692,1.27168218,1965.9,1965.3,0.57678963]
[1772194006896,1.27268218,1965.9,1965.3,0.57678963]
[1772194007584,0.001,1965.9,1965.3,0.57678963]
[1772194007776,0.001,1965.9,1965.4,1.84879532]
[1772194007988,0.001,1965.9,1965.5,0.57678963]
[1772194010617,0.001,1965.9,1965.6,0.57678963]
[1772194012171,1.27128433,1966.6,1965.8,0.57678963]
[1772194012372,1.82974186,1966.6,1965.8,0.57678963]
[1772194012569,1.27128433,1966.6,1965.8,0.57678963]
[1772194013296,5.08478467,1966.7,1965.8,0.57678963]
[1772194013297,0.55845753,1966.7,1965.8,0.57678963]
[1772194013696,1.27114738,1966.8,1965.8,0.57678963]
[1772194014074,0.55845753,1966.8,1966.0,0.57678963]
[1772194014899,0.55845753,1966.8,1965.8,1.84849697]
[1772194015199,0.55845753,1966.6,1965.9,0.57678963]
[1772194015439,2.00245753,1966.6,1965.9,0.57678963]
[1772194016244,1.27129417,1966.5,1965.9,0.57678963]
[1772194016452,0.55845753,1966.4,1965.7,0.57678963]
[1772194017115,1.8297517,1966.5,1965.7,0.57678963]
[1772194017320,1.27129417,1966.5,1965.7,0.57678963]
[1772194017848,1.27127199,1966.6,1965.7,0.57678963]
[1772194018254,1.27127199,1966.6,1965.9,0.57678963]
[1772194018755,0.55945753,1966.5,1965.6,0.57678963]
[1772194020062,0.001,1966.5,1965.6,0.57678963]
[1772194020363,0.001,1966.5,1965.8,0.57678963]
[1772194020564,0.55945753,1966.5,1965.8,0.57678963]
[1772194021655,0.55945753,1966.5,1965.5,0.0011]
[1772194021855,2.32187921,1966.0,1965.5,0.0011]
[1772194022165,1.27168218,1965.9,1965.5,0.0011]
[1772194022369,1.27148814,1966.2,1965.5,0.57788963]
[1772194022568,0.55845753,1966.1,1965.5,0.0011]
[1772194023445,0.55845753,1966.0,1965.5,0.0011]
[1772194023763,1.443,1966.1,1965.2,0.0011]
[1772194023764,0.55845753,1965.6,1965.2,0.0011]
[1772194024136,0.55845753,1965.6,1964.8,0.57678963]
[1772194024137,1.83039851,1965.5,1964.8,0.57678963]
[1772194025048,0.55845753,1965.4,1964.7,0.0011]
[1772194025885,0.55845753,1965.3,1964.7,0.0011]
[1772194026772,1.83059268,1965.2,1964.7,0.0011]
[1772194028776,1.27211807,1965.3,1964.7,0.0011]
[1772194028977,1.27202918,1965.4,1964.7,0.57788963]
[1772194029857,1.27192769,1965.6,1964.7,0.57788963]
[1772194030057,5.08704972,1965.8,1964.8,0.5744167]
[1772194030541,5.65694278,1965.8,1964.8,0.5744167]
[1772194030742,5.65694278,1965.8,1964.9,1.84674608]
[1772194031048,5.65694278,1965.8,1965.0,0.5744167]
[1772194032460,0.56989306,1965.7,1965.0,0.5744167]
[1772194033371,1.27187627,1965.6,1965.0,0.5744167]
[1772194033755,1.27187627,1965.6,1965.1,0.5744167]
[1772194033961,6.53309775,1965.8,1965.1,0.5744167]
[1772194035782,6.53309775,1965.8,1965.1,1.84661061]
[1772194035983,5.08709775,1965.8,1965.2,0.5744167]
[1772194036165,5.65699081,1965.8,1965.1,1.27219391]
[1772194036479,5.65699081,1965.8,1965.0,5.08903552]
[1772194036776,5.65699081,1965.8,1965.0,5.66345222]
[1772194036986,5.65699081,1965.8,1965.1,0.5744167]
[1772194038079,5.65699081,1965.8,1964.9,0.0011]
[1772194038080,0.56989306,1965.7,1964.9,0.0011]
[1772194038257,0.56989306,1965.7,1964.9,1.27342885]
[1772194038579,0.56989306,1965.7,1964.9,1.84784555]
[1772194039552,0.56989306,1965.7,1964.9,1.27342885]
[1772194039856,6.85051943,1965.8,1965.2,0.5744167]
[1772194039857,1.27174687,1965.8,1965.2,0.5744167]
[1772194041187,0.56989306,1965.7,1964.9,1.84783975]
[1772194041363,0.56989306,1965.7,1965.0,0.5744167]
[1772194042077,1.27262243,1966.0,1965.2,0.5744167]
[1772194042256,0.001,1966.0,1965.2,0.5744167]
[1772194042458,0.001,1966.0,1965.3,0.5744167]
[1772194042858,0.001,1966.0,1965.3,0.5444167]
[1772194044167,0.001,1966.0,1965.5,0.5744167]
[1772194045079,8.6108843,1967.0,1965.4,1.27200569]
[1772194045080,5.08370095,1967.1,1966.0,0.5744167]
[1772194045278,0.56989306,1967.0,1966.0,0.5744167]
[1772194045478,0.56989306,1966.7,1966.0,0.5744167]
[1772194045784,0.56989306,1966.7,1965.9,0.984]
[1772194046182,1.27122953,1966.6,1966.0,0.5744167]
[1772194046367,1.27120717,1966.7,1966.0,0.5744167]
[1772194047492,1.27110026,1966.8,1966.0,0.5744167]
[1772194047789,0.56989306,1966.7,1966.0,0.5744167]
[1772194048292,1.27122953,1966.6,1966.1,1.27155282]
[1772194048892,1.27122953,1966.6,1966.0,1.84598218]
[1772194049891,1.84112259,1966.6,1965.9,2.83005008]
[1772194050282,1.84099332,1966.8,1966.0,0.5744167]
[1772194051069,1.27110026,1966.8,1966.0,0.5744167]
[1772194051265,1.2710848,1966.9,1966.0,0.5744167]
[1772194051985,0.56989306,1966.8,1965.9,1.27166252]
[1772194052185,1.84117627,1966.6,1965.9,1.84607922]
[1772194052384,3.22142168,1967.0,1966.0,0.5744167]
[1772194052385,1.84105167,1966.8,1966.0,0.5744167]
[1772194052594,1.84090828,1967.0,1966.0,0.5744167]
[1772194052768,1.27090641,1967.1,1966.0,0.5744167]
[1772194053290,0.56989306,1966.9,1966.0,0.5744167]
[1772194054167,1.84099332,1966.8,1966.0,1.84597379]
[1772194054368,0.56989306,1966.8,1966.0,1.84597379]
[1772194055297,0.56989306,1966.8,1966.1,0.5744167]
[1772194055779,2.72708446,1966.9,1966.1,0.5744167]
[1772194056579,2.72708446,1966.9,1966.2,1.84590484]
[1772194056908,1.27108446,1966.9,1966.2,1.84590484]
[1772194058293,1.80753043,1966.9,1966.1,0.55885216]
[1772194058603,1.80774014,1966.5,1966.1,0.0011]
[1772194058798,1.27129417,1966.5,1966.0,0.0011]
[1772194058997,0.53644597,1966.4,1966.0,0.0011]
[1772194059203,1.455,1966.3,1966.0,0.0011]
[1772194059902,0.53644597,1966.4,1966.0,0.0011]
[1772194060106,1.99144597,1966.4,1966.0,0.0011]
[1772194060804,1.27142348,1966.3,1966.0,0.0011]
[1772194062001,5.0850585,1966.6,1966.0,0.56092776]
[1772194062813,5.0850585,1966.6,1966.0,1.83252879]
[1772194063304,0.53738298,1966.5,1966.0,0.0011]
[1772194064809,1.27135882,1966.4,1966.0,0.0011]
[1772194065788,2.72934438,1966.5,1966.0,0.0011]
[1772194066496,2.72934438,1966.5,1966.0,0.56092776]
[1772194066683,2.72931039,1966.5,1966.0,0.56092776]
[1772194067307,2.72931039,1966.5,1966.0,0.0011]
[1772194068508,1.458,1966.5,1966.0,1.2726653]
[1772194068703,2.72930045,1966.5,1966.0,0.0011]
[1772194070596,2.73330045,1966.5,1966.0,0.56092776]
[1772194070910,0.001,1967.0,1966.3,0.55982776]
[1772194072020,1.461,1966.9,1966.3,0.55982776]
[1772194072487,1.462,1967.0,1966.3,0.55982776]
[1772194072909,1.462,1967.0,1966.5,0.55982776]
[1772194073515,0.001,1967.0,1966.5,0.55982776]
[1772194075016,1.46,1967.2,1966.5,0.55982776]
[1772194075386,2.7308512,1967.2,1966.7,0.55982776]
[1772194076090,1.46,1967.1,1966.7,0.55982776]
[1772194076892,1.461,1967.4,1966.7,0.55982776]
[1772194077915,5.08267911,1967.5,1966.8,1.83092802]
[1772194078218,1.46,1967.4,1966.9,0.55982776]
[1772194078795,1.99738298,1967.4,1966.7,1.83097498]
[1772194079314,1.461,1967.3,1966.7,1.83097498]
[1772194079520,0.53738298,1967.4,1966.8,0.55982776]
[1772194079819,1.46,1967.3,1966.8,0.55982776]
[1772194080222,1.46,1967.3,1966.9,1.27103563]
[1772194080524,1.46,1967.6,1967.0,0.55982776]
[1772194081204,0.53738298,1967.5,1966.9,1.27103563]
[1772194081398,0.53738298,1967.5,1966.7,5.08461901]
[1772194081721,0.53738298,1967.4,1966.5,1.27125374]
[1772194082019,1.459,1967.4,1966.5,1.27129417]
[1772194082218,1.459,1967.4,1966.5,0.55982776]
[1772194082219,0.53738298,1967.4,1966.5,0.55982776]
[1772194082420,1.27068714,1967.5,1966.5,0.55982776]
[1772194082421,1.73938298,1967.3,1966.5,0.55982776]
[1772194082719,0.53738298,1967.1,1966.5,0.55982776]
[1772194082926,0.53738298,1967.1,1966.3,0.55982776]
[1772194083088,0.53738298,1967.1,1966.2,5.08594926]
[1772194083291,0.53738298,1967.1,1966.1,1.83242886]
[1772194083936,1.458,1967.0,1966.2,0.55982776]
[1772194084239,1.27103563,1966.9,1966.3,1.83125124]
[1772194084515,1.80839965,1967.0,1966.3,1.83125124]
[1772194084719,1.457,1966.9,1966.3,1.83125124]
[1772194085611,0.53738298,1966.8,1966.2,1.27148814]
[1772194085923,1.99438298,1966.9,1966.3,0.55982776]
[1772194086227,1.99438298,1966.9,1966.1,0.0011]
[1772194086228,0.53738298,1966.6,1966.1,0.0011]
[1772194086421,1.80849796,1966.8,1966.1,0.56092776]
[1772194086718,1.457,1966.6,1966.1,0.56092776]
[1772194087120,0.53738298,1966.5,1966.1,0.0011]
[1772194087319,1.56434402,1967.3,1966.3,0.55982776]
[1772194087520,0.53738298,1967.2,1966.3,0.55982776]
[1772194087693,0.53738298,1967.0,1966.3,0.55982776]
[1772194087895,0.53738298,1967.0,1966.1,0.56092776]
[1772194088205,0.53738298,1966.8,1966.1,1.83241769]
[1772194088418,1.456,1966.7,1966.1,1.83241769]
[1772194088604,0.53738298,1966.8,1966.1,1.83241769]
[1772194088795,1.99338298,1966.7,1966.1,1.83241769]
[1772194089122,0.53738298,1966.6,1966.1,0.0011]
[1772194090106,0.53738298,1966.6,1966.0,0.0011]
[1772194090416,0.55330887,1966.4,1965.8,0.0011]
[1772194090827,2.00830887,1966.3,1965.8,0.0011]
[1772194091144,0.55330887,1966.2,1965.8,0.0011]
[1772194091989,1.455,1966.1,1965.8,0.0011]
[1772194092529,1.454,1966.0,1965.8,0.0011]
[1772194092747,1.454,1965.9,1965.8,0.0011]
[1772194093132,1.454,1965.9,1965.4,0.54996128]
[1772194093635,1.454,1965.9,1965.2,5.08853017]
[1772194093636,2.00730887,1965.9,1965.2,1.82205134]
[1772194093998,2.00730887,1965.9,1965.2,0.54996128]
[1772194094234,1.27181156,1965.7,1965.1,0.0011]
[1772194094454,1.82512043,1965.7,1965.1,0.0011]
[1772194094953,0.55330887,1965.6,1965.1,0.0011]
[1772194095540,0.55330887,1965.6,1965.3,0.0011]
[1772194096830,1.82523599,1965.6,1965.3,0.0011]
[1772194097451,1.82519661,1965.6,1965.3,0.0011]
[1772194097883,0.55330887,1966.1,1965.3,0.55106128]
[1772194098244,1.456,1966.0,1965.3,0.55106128]
[1772194098445,0.55330887,1966.1,1965.3,0.55106128]
[1772194098632,1.456,1966.0,1965.3,0.55106128]
[1772194098838,1.456,1965.9,1965.4,1.82196697]
[1772194099040,1.27158792,1966.1,1965.5,0.54996128]
[1772194099240,1.456,1966.0,1965.5,0.54996128]
[1772194099564,1.27158792,1966.1,1965.5,0.54996128]
[1772194099744,1.456,1965.9,1965.5,0.54996128]
[1772194100837,1.27158792,1966.1,1965.5,0.54996128]
[1772194101039,1.456,1965.8,1965.5,1.82185449]
[1772194101357,1.456,1965.7,1965.5,1.82185449]
[1772194101857,1.456,1965.7,1965.5,0.54996128]
[1772194102758,1.27158792,1966.1,1965.5,1.82189915]
[1772194102958,2.72662772,1966.0,1965.6,0.54996128]
[1772194103347,1.27162772,1966.0,1965.6,0.54996128]
[1772194103568,1.455,1965.9,1965.6,0.54996128]
[1772194104450,1.27154021,1966.2,1965.6,0.54996128]
[1772194104642,1.455,1965.8,1965.6,0.54996128]
[1772194105056,5.08595775,1966.2,1965.7,0.54996128]
[1772194105258,0.55330887,1966.4,1965.6,1.27184428]
[1772194105458,1.455,1966.1,1965.6,1.27184428]
[1772194105844,2.00830887,1966.1,1965.5,0.54996128]
[1772194106045,2.00830887,1966.1,1965.4,1.27199277]
[1772194106367,2.00830887,1966.1,1965.4,1.82195405]
[1772194106562,0.55330887,1966.1,1965.5,0.54996128]
[1772194106764,1.454,1966.0,1965.5,0.54996128]
[1772194107468,1.2714076,1966.4,1965.7,0.54996128]
[1772194107774,1.429,1966.3,1965.7,0.54996128]
[1772194108768,1.453,1966.3,1965.7,0.54996128]
[1772194109368,0.001,1966.2,1965.7,0.54996128]
[1772194109769,0.001,1966.2,1965.9,0.54996128]
[1772194111371,1.452,1966.1,1965.7,1.82172892]
[1772194111568,5.08494159,1966.6,1965.7,1.82172892]
[1772194111569,0.55330887,1967.2,1965.9,0.54996128]
[1772194111744,1.27116489,1966.7,1966.1,0.54996128]
[1772194111944,3.27645889,1966.8,1966.1,0.54996128]
[1772194112161,1.452,1966.7,1966.1,0.54996128]
[1772194113266,1.452,1966.6,1966.1,0.54996128]
[1772194113673,1.452,1966.6,1966.2,1.27148814]
[1772194113977,1.451,1966.5,1966.2,1.82144942]
[1772194115644,1.82427989,1967.0,1966.3,1.82132791]
[1772194115849,0.55330887,1966.9,1966.3,1.82132791]
[1772194116048,0.55330887,1966.9,1966.1,1.82146184]
[1772194116049,0.55330887,1966.8,1966.1,1.82146184]
[1772194116571,0.55330887,1966.8,1966.1,1.27150056]
[1772194118745,0.54270718,1966.6,1965.8,0.57854819]
[1772194118948,0.54270718,1966.6,1965.6,0.57854819]
[1772194119253,1.448,1966.5,1965.6,0.57854819]
[1772194119755,1.448,1966.4,1965.6,0.57854819]
[1772194120175,1.85183692,1966.7,1965.6,0.57854819]
[1772194120357,0.58067203,1966.6,1965.6,0.57854819]
[1772194120551,2.02867203,1966.6,1965.6,0.57854819]
[1772194120948,1.448,1966.5,1965.8,0.55957788]
[1772194121148,1.448,1966.4,1965.8,0.55957788]
[1772194121344,0.58067203,1966.7,1966.2,0.0011]
[1772194121583,1.448,1966.6,1966.2,0.56067788]
[1772194121947,0.001,1966.7,1966.2,0.56067788]
[1772194122884,0.001,1966.7,1966.4,0.55957788]
[1772194123097,5.08289604,1967.4,1966.5,0.55957788]
[1772194123098,0.58067203,1967.4,1966.5,0.55957788]
[1772194123255,1.447,1967.1,1966.5,0.55957788]
[1772194123662,1.27080762,1967.3,1966.5,0.55957788]
[1772194123976,1.446,1967.2,1966.5,0.55957788]
[1772194125108,1.446,1967.2,1966.7,0.55957788]
[1772194127200,1.446,1967.2,1966.8,1.27110026]
[1772194127410,2.71685396,1967.2,1966.7,1.83069909]
[1772194127901,3.29751507,1967.2,1966.7,1.27112121]
[1772194128709,10.74067203,1967.8,1966.8,0.55957788]
[1772194128877,19.3274296,1968.1,1967.0,0.55957788]
[1772194128878,1.446,1967.9,1967.0,0.55957788]
[1772194129276,1.446,1967.9,1967.2,0.55957788]
[1772194130218,2.02667203,1967.9,1967.2,0.55957788]
[1772194130374,0.58067203,1967.7,1967.0,1.83054288]
[1772194130570,0.58067203,1967.7,1967.0,1.270965]
[1772194130774,0.58067203,1967.6,1967.0,1.270965]
[1772194131015,2.02667203,1967.6,1967.0,1.270965]
[1772194131383,1.446,1967.5,1966.9,5.64350382]
[1772194131574,1.446,1967.4,1966.9,5.64350382]
[1772194131808,1.27063586,1967.6,1967.0,0.55957788]
[1772194132113,1.446,1967.5,1967.0,0.55957788]
[1772194132306,0.58067203,1967.6,1967.0,0.55957788]
[1772194132511,1.27058378,1967.6,1967.0,0.55957788]
[1772194132704,1.446,1967.5,1966.9,1.27103563]
[1772194132906,0.58067203,1967.4,1966.7,1.27112521]
[1772194133213,0.58067203,1967.4,1966.7,1.83070309]
[1772194133721,1.85144923,1967.3,1966.7,1.27112521]
[1772194134116,1.85144923,1967.3,1966.8,0.0011]
[1772194134431,1.27076168,1967.4,1966.8,0.0011]
[1772194134626,1.445,1967.2,1966.8,0.0011]
[1772194134925,1.446,1967.1,1966.8,0.0011]
[1772194135130,1.85143371,1967.4,1966.8,0.0011]
[1772194135522,1.445,1967.3,1966.8,0.0011]
[1772194135732,1.2708418,1967.2,1966.8,0.0011]
[1772194136537,7.1087947,1967.3,1966.8,0.0011]
[1772194136538,1.85149977,1967.3,1966.8,0.0011]
[1772194136738,1.446,1967.1,1966.8,0.0011]
[1772194137609,1.446,1967.1,1966.4,5.08542282]
[1772194137610,1.85164305,1967.0,1966.4,1.27133198]
[1772194138339,1.85164305,1967.0,1966.3,1.83095873]
[1772194139305,0.58067203,1966.9,1966.3,1.83095873]
[1772194139507,0.58067203,1966.9,1966.2,1.27258051]
[1772194139727,0.58067203,1966.9,1966.2,0.0011]
[1772194139728,1.85177229,1966.8,1966.2,0.0011]
[1772194139933,2.02767203,1966.7,1966.2,0.0011]
[1772194140349,0.58067203,1966.6,1966.2,0.0011]
[1772194140651,0.58067203,1966.6,1966.0,0.0011]
[1772194141010,2.02767203,1966.5,1966.0,0.0011]
[1772194141856,2.71835882,1966.4,1966.0,0.0011]
[1772194142153,3.29903085,1966.4,1966.0,0.0011]
[1772194142548,0.58067203,1966.3,1966.0,0.0011]
[1772194142718,0.58067203,1966.3,1965.9,0.0011]
[1772194143049,2.02867203,1966.2,1965.9,0.0011]
[1772194143849,1.27155282,1966.1,1965.9,0.0011]
[1772194144540,1.449,1966.0,1965.9,0.0011]
[1772194146420,1.451,1966.0,1965.9,0.0011]
[1772194146738,1.8519662,1966.6,1965.9,0.0011]
[1772194146948,3.48367203,1966.5,1965.9,0.0011]
[1772194147161,1.452,1966.4,1966.0,0.55957788]
[1772194147316,1.27109807,1966.9,1966.0,0.55957788]
[1772194147517,1.452,1966.8,1966.0,0.56067788]
[1772194148454,0.58067203,1966.6,1966.0,1.27271268]
[1772194148624,0.58067203,1966.6,1966.0,0.0011]
[1772194150012,0.58067203,1966.6,1966.0,1.27271725]
[1772194150326,1.27129417,1966.5,1966.0,0.0011]
[1772194150648,1.452,1966.4,1966.0,0.0011]
[1772194151143,1.452,1966.3,1966.0,0.0011]
[1772194151446,1.452,1966.5,1966.0,0.60536974]
[1772194151840,1.85376317,1966.8,1966.0,0.0011]
[1772194151841,0.58261454,1966.7,1966.0,0.0011]
[1772194152019,0.58261454,1966.5,1966.0,0.0011]
[1772194152528,1.451,1966.4,1966.0,0.0011]
[1772194153120,1.451,1966.3,1966.0,0.0011]
[1772194154549,1.27148654,1966.3,1966.0,0.0011]
[1772194154742,1.452,1966.2,1966.0,0.0011]
[1772194156021,1.27148654,1966.3,1966.0,0.0011]
[1772194156022,1.453,1966.1,1966.0,0.0011]
[1772194156619,1.27149387,1966.2,1966.0,0.0011]
[1772194156850,1.454,1966.1,1966.0,0.0011]
[1772194157847,1.455,1966.1,1966.0,0.0011]
[1772194158821,2.72659736,1966.1,1965.9,0.0011]
[1772194160153,2.72659736,1966.1,1966.0,0.0011]
[1772194160348,3.3102119,1966.1,1965.7,0.0011]
[1772194161139,0.58261454,1966.0,1965.7,0.0011]
[1772194161826,1.46,1965.9,1965.7,0.0011]
[1772194162229,0.58261454,1966.0,1965.7,0.0011]